fUST/lending_fUST_20250614
["ID","MTS","AMOUNT","RATE_DAILY","PERIOD"]
[365705041,1749838233039,-500.0,0.00021367,2]
[365705042,1749838233049,-500.0,0.00021367,2]
[365705043,1749838233059,-500.0,0.00021367,2]
[365705044,1749838233068,-500.0,0.00021367,2]
[365705045,1749838233079,-214.52707427,0.00021367,2]
[365705046,1749838233088,-500.0,0.00021367,2]
[365705047,1749838233098,-500.0,0.00021367,2]
[365705048,1749838233108,-175.02666991,0.00021367,2]
[365705049,1749838233117,-500.0,0.00021367,2]
[365705050,1749838233126,-500.0,0.00021367,2]
[365705051,1749838233135,-500.0,0.00021367,2]
[365705052,1749838233146,-500.0,0.00021367,2]
[365705053,1749838233159,-500.0,0.00021367,2]
[365705054,1749838233169,-457.97883892,0.00021367,2]
[365705055,1749838233178,-500.0,0.00021367,2]
[365705056,1749838233189,-368.13852271,0.00021367,2]
[365705057,1749838233199,-500.0,0.00021367,2]
[365705058,1749838233210,-500.0,0.00021367,2]
[365705059,1749838233220,-500.0,0.00021367,2]
[365705060,1749838233230,-500.0,0.00021367,2]
[365705061,1749838233240,-220.35279038,0.00021367,2]
[365705062,1749838233250,-500.0,0.00021367,2]
[365705063,1749838233259,-500.0,0.00021367,2]
[365705064,1749838233269,-500.0,0.00021367,2]
[365705065,1749838233279,-500.0,0.00021367,2]
[365705066,1749838233288,-500.0,0.00021367,2]
[365705067,1749838233442,-500.0,0.00021367,2]
[365705068,1749838233453,-500.0,0.00021367,2]
[365705069,1749838233463,-383.29176011,0.00021367,2]
[365705091,1749838238677,-460.0,0.00021095,4]
[365705092,1749838238687,-460.0,0.00021367,4]
[365705093,1749838238696,-460.0,0.00021369,4]
[365705094,1749838238706,-460.0,0.00021369,4]
[365705095,1749838238715,-460.0,0.00021369,4]
[365705096,1749838238725,-460.0,0.00021369,4]
[365705097,1749838238735,-460.0,0.00021369,4]
[365705098,1749838238744,-762.13,0.00021369,4]
[365705099,1749838238754,-460.0,0.00021369,4]
[365705100,1749838238763,-460.0,0.00021369,4]
[365705101,1749838238773,-460.0,0.00021369,4]
[365705102,1749838238782,-215.65560606,0.000214,5]
[365705103,1749838238791,-218.01657692,0.00021523,2]
[365705104,1749838238800,-373.54989965,0.00021623,4]
[365705105,1749838238809,-460.0,0.0002164,4]
[365705106,1749838238818,-460.0,0.0002164,4]
[365705108,1749838238830,-460.0,0.0002164,2]
[365705109,1749838238839,-421.88915428,0.00021641,4]
[365705110,1749838238851,-460.0,0.00021642,4]
[365705112,1749838238861,-426.53492805,0.00021642,2]
[365705114,1749838238870,-460.0,0.00021642,4]
[365705116,1749838238880,-977.96,0.00021642,4]
[365705118,1749838238890,-460.0,0.00021642,4]
[365705120,1749838238899,-683.19,0.00021642,4]
[365705122,1749838238909,-460.0,0.00021642,4]
[365705124,1749838238919,-199.19747892,0.00021642,4]
[365705126,1749838238928,-460.0,0.00021643,4]
[365705128,1749838238938,-460.0,0.00021643,4]
[365705130,1749838238947,-460.0,0.00021643,4]
[365705132,1749838238956,-460.0,0.00021643,4]
[365705134,1749838238966,-460.0,0.00021643,4]
[365705135,1749838238976,-762.13,0.00021643,4]
[365705136,1749838238986,-460.0,0.00021643,4]
[365705137,1749838238995,-460.0,0.00021643,4]
[365705138,1749838239006,-460.0,0.00021643,4]
[365705139,1749838239016,-162.95482579,0.00021758,2]
[365705140,1749838239026,-178.05,0.00021895,4]
[365705141,1749838239035,-295.99655748,0.00021895,2]
[365705142,1749838239044,-460.0,0.00021895,4]
[365705143,1749838239054,-150.0,0.000219,2]
[365705144,1749838239075,-215.65560606,0.000219,6]
[365705145,1749838239088,-460.0,0.00021914,2]
[365705146,1749838239097,-460.0,0.00021916,4]
[365705147,1749838239108,-460.0,0.00021916,4]
[365705148,1749838239118,-460.0,0.00021916,4]
[365705149,1749838239127,-683.19,0.00021916,4]
[365705150,1749838239137,-460.0,0.00021916,4]
[365705151,1749838239148,-565.58802971,0.00021916,2]
[365705152,1749838239157,-219.74,0.00021917,2]
[365705153,1749838239167,-460.0,0.00021917,4]
[365705154,1749838239177,-460.0,0.00021917,4]
[365705155,1749838239188,-460.0,0.00021917,4]
[365705157,1749838239197,-460.0,0.00021917,4]
[365705159,1749838239207,-460.0,0.00021917,4]
[365705161,1749838239216,-762.13,0.00021917,4]
[365705163,1749838239225,-460.0,0.00021917,4]
[365705164,1749838239234,-460.0,0.00021917,4]
[365705165,1749838239244,-460.0,0.00021917,4]
[365705166,1749838239254,-977.96,0.00021924,4]
[365705167,1749838239264,-13002.7034772,0.00021925,2]
[365705168,1749838239274,-264.66609239,0.0002194,2]
[365705169,1749838239283,-156.86,0.0002199,10]
[365705170,1749838239292,-784.3,0.0002199,10]
[365705171,1749838239302,-1000.0,0.00022,22]
[365705172,1749838239311,-4171.82,0.00022,7]
[365705173,1749838239331,-500.0,0.0002208,2]
[365705174,1749838239345,-278.56407736,0.00022136,2]
[365705175,1749838239359,-161.45,0.00022169,4]
[365705176,1749838239373,-460.0,0.00022188,2]
[365705177,1749838239387,-460.0,0.0002219,4]
[365705178,1749838239399,-460.0,0.0002219,4]
[365705179,1749838239410,-460.0,0.0002219,4]
[365705180,1749838239421,-683.19,0.0002219,4]
[365705181,1749838239434,-460.0,0.0002219,4]
[365705182,1749838239446,-460.0,0.00022191,4]
[365705183,1749838239458,-460.0,0.00022191,4]
[365705184,1749838239471,-460.0,0.00022191,4]
[365705185,1749838239482,-460.0,0.00022191,4]
[365705186,1749838239495,-460.0,0.00022191,4]
[365705187,1749838239507,-762.13,0.00022191,4]
[365705188,1749838239519,-460.0,0.00022191,4]
[365705189,1749838239532,-460.0,0.00022191,4]
[365705190,1749838239544,-460.0,0.00022191,4]
[365705191,1749838239556,-500.0,0.00022318,2]
[365705192,1749838239568,-500.0,0.00022394,2]
[365705193,1749838239581,-215.65560606,0.000224,7]
[365705194,1749838239593,-500.0,0.00022422,2]
[365705195,1749838239604,-160.72,0.00022462,2]
[365705196,1749838239615,-460.0,0.00022464,4]
[365705197,1749838239627,-460.0,0.00022464,4]
[365705198,1749838239642,-977.96,0.00022464,4]
[365705199,1749838239654,-460.0,0.00022464,4]
[365705200,1749838239667,-683.19,0.00022464,4]
[365705201,1749838239679,-460.0,0.00022464,4]
[365705202,1749838239692,-328.615442,0.00022465,4]
[365705203,1749838239708,-131.384558,0.00022465,4]
[365705204,1749838239719,-460.0,0.00022465,4]
[365705205,1749838239731,-77.93692,0.00022465,4]
[365705206,1749838239743,-382.06308,0.00022465,4]
[365705207,1749838239754,-201.5418159,0.00022465,4]
[365705208,1749838239764,-460.0,0.00022465,4]
[365705209,1749838239776,-762.13,0.00022465,4]
[365705210,1749838239788,-460.0,0.00022465,4]
[365705211,1749838239799,-460.0,0.00022465,4]
[365705212,1749838239811,-460.0,0.00022465,4]
[365705213,1749838239823,-420.0,0.00022485,2]
[365705214,1749838239835,-500.0,0.00022511,2]
[365705215,1749838239851,-162.95482579,0.00022521,2]
[365705216,1749838239862,-460.0,0.00022738,4]
[365705217,1749838239875,-460.0,0.00022738,4]
[365705218,1749838239888,-265.64,0.00022738,4]
[365705219,1749838239900,-683.19,0.00022738,4]
[365705220,1749838239913,-460.0,0.00022738,4]
[365705221,1749838239927,-460.0,0.00022739,4]
[365705222,1749838239940,-460.0,0.00022739,4]
[365705223,1749838239950,-460.0,0.00022739,4]
[365705224,1749838239960,-460.0,0.00022739,4]
[365705225,1749838239970,-762.13,0.00022739,4]
[365705226,1749838239981,-460.0,0.00022739,4]
[365705227,1749838239991,-460.0,0.00022739,4]
[365705228,1749838240002,-460.0,0.00022739,4]
[365705229,1749838240014,-207.4,0.0002278,2]
[365705230,1749838240026,-500.0,0.0002278,2]
[365705231,1749838240038,-500.0,0.0002278,2]
[365705232,1749838240050,-500.0,0.0002278,2]
[365705233,1749838240061,-500.0,0.0002278,2]
[365705234,1749838240071,-500.0,0.0002278,2]
[365705235,1749838240083,-500.0,0.0002278,2]
[365705236,1749838240093,-500.0,0.0002278,2]
[365705237,1749838240105,-500.0,0.0002278,2]
[365705238,1749838240117,-500.0,0.0002278,2]
[365705239,1749838240130,-500.0,0.0002278,2]
[365705240,1749838240141,-500.0,0.0002278,2]
[365705241,1749838240151,-500.0,0.0002278,2]
[365705242,1749838240162,-500.0,0.0002278,2]
[365705243,1749838240173,-500.0,0.0002278,2]
[365705244,1749838240184,-500.0,0.0002278,2]
[365705245,1749838240194,-215.65560606,0.000229,8]
[365705246,1749838240205,-420.0,0.00022943,2]
[365705247,1749838240218,-1000.0,0.00023,23]
[365705248,1749838240229,-460.0,0.00023012,4]
[365705250,1749838240242,-460.0,0.00023012,4]
[365705251,1749838240253,-683.19,0.00023012,4]
[365705252,1749838240265,-460.0,0.00023012,4]
[365705253,1749838240277,-460.0,0.00023013,4]
[365705254,1749838240288,-460.0,0.00023013,4]
[365705255,1749838240300,-460.0,0.00023013,4]
[365705256,1749838240311,-398.45556626,0.00023013,4]
[365705257,1749838240324,-762.13,0.00023013,4]
[365705259,1749838240339,-460.0,0.00023013,4]
[365705260,1749838240350,-460.0,0.00023013,4]
[365705261,1749838240361,-250.87351855,0.00023013,4]
[365705289,1749838240735,-209.12648145,0.00023013,4]
[365705291,1749838240747,-161.22612725,0.00023256,2]
[365705570,1749838426832,3784.0,0.00024658,120]
[365705572,1749838736871,-195.0856988,0.00020387,2]
[365705573,1749838736892,-177.831984,0.00020577,2]
[365705574,1749838736912,-462.56313591,0.0002068,2]
[365705575,1749838736934,-524.41512156,0.00021064,2]
[365705576,1749838736957,-300.0,0.00021094,2]
[365705577,1749838736978,-300.0,0.00021094,2]
[365705578,1749838736999,-400.0,0.00021095,4]
[365705579,1749838737026,-400.0,0.00021095,4]
[365705580,1749838737046,-380.0,0.00021095,4]
[365705581,1749838737067,-460.0,0.00021095,4]
[365705582,1749838737089,-400.0,0.00021095,4]
[365705583,1749838737120,-460.0,0.00021095,4]
[365705584,1749838737143,-460.0,0.00021095,4]
[365705585,1749838737164,-420.0,0.00021095,4]
[365705586,1749838737187,-460.0,0.00021095,4]
[365705587,1749838737212,-430.0,0.00021095,2]
[365705588,1749838737239,-460.0,0.00021095,4]
[365705589,1749838737262,-460.0,0.00021095,4]
[365705590,1749838737283,-460.0,0.00021095,4]
[365705591,1749838737303,-460.0,0.00021095,4]
[365705592,1749838737324,-460.0,0.00021095,4]
[365705593,1749838737345,-440.0,0.00021095,4]
[365705594,1749838737366,-440.0,0.00021095,4]
[365705595,1749838737390,-460.0,0.00021095,4]
[365705596,1749838737411,-460.0,0.00021095,4]
[365705597,1749838737433,-460.0,0.00021095,4]
[365705598,1749838737456,-460.0,0.00021095,4]
[365705599,1749838737477,-460.0,0.00021095,4]
[365705600,1749838737497,-460.0,0.00021095,4]
[365705601,1749838737519,-460.0,0.00021095,4]
[365705602,1749838737541,-460.0,0.00021095,4]
[365705603,1749838737564,-460.0,0.00021095,4]
[365705604,1749838737731,-397.10405973,0.00021095,4]
[365705605,1749838805146,-1178.0,0.00018,2]
[365705606,1749838805326,-444.73057202,0.00018,2]
[365705607,1749838836750,626.62143052,0.00024657,120]
[365705608,1749838867998,-2733.0,0.00018,2]
[365705609,1749838870250,-254.49744474,0.00018,2]
[365705610,1749839104307,-224.536575,0.00018,2]
[365705611,1749839243145,-294.23540824,0.00018,2]
[365705612,1749839243169,-204.86182814,0.00019998,2]
[365705613,1749839270921,179.84969877,0.000246,120]
[365705614,1749839317689,-346.50026447,0.00019,20]
[365705618,1749839323045,301.99999931,0.0002,120]
[365705619,1749839323204,918.774089,0.00024913,120]
[365705620,1749839327875,346.50026447,0.0001805,6]
[365705621,1749839328938,-199.85065372,0.00019,20]
[365705622,1749839337419,-163.74806093,0.00018,2]
[365705623,1749839343762,163.74806093,0.0001805,6]
[365705624,1749839347129,-5555.40403119,0.00018,2]
[365705625,1749839347150,-402.30405115,0.00019,20]
[365705626,1749839347170,-182.1979162,0.00019072,2]
[365705627,1749839347189,-168.581955,0.00019841,2]
[365705628,1749839347212,-300.0,0.00019998,2]
[365705629,1749839347232,-300.0,0.00019999,2]
[365705630,1749839347253,-500.0,0.00019999,2]
[365705631,1749839347276,-457.22879031,0.00019999,2]
[365705632,1749839347295,-500.0,0.00019999,2]
[365705633,1749839347315,-500.0,0.00019999,2]
[365705634,1749839347335,-500.0,0.00019999,2]
[365705635,1749839347356,-213.87102947,0.00019999,2]
[365705636,1749839347377,-500.0,0.00019999,2]
[365705637,1749839347397,-500.0,0.00019999,2]
[365705638,1749839347417,-500.0,0.00019999,2]
[365705639,1749839347439,-500.0,0.00019999,2]
[365705640,1749839347460,-500.0,0.00019999,2]
[365705641,1749839347481,-500.0,0.00019999,2]
[365705642,1749839347503,-500.0,0.00019999,2]
[365705643,1749839347523,-500.0,0.00019999,2]
[365705644,1749839347543,-500.0,0.00019999,2]
[365705645,1749839347563,-322.03527904,0.00019999,2]
[365705646,1749839347582,-500.0,0.00019999,2]
[365705647,1749839347605,-500.0,0.00019999,2]
[365705648,1749839347625,-500.0,0.00019999,2]
[365705649,1749839347646,-500.0,0.00019999,2]
[365705650,1749839347666,-500.0,0.00019999,2]
[365705651,1749839347688,-319.4333776,0.00019999,2]
[365705652,1749839347708,-500.0,0.00019999,2]
[365705653,1749839347729,-500.0,0.00019999,2]
[365705654,1749839347748,-500.0,0.00019999,2]
[365705655,1749839347770,-500.0,0.00019999,2]
[365705656,1749839347790,-67173.50449458,0.0002,20]
[365705658,1749839352111,-39414.54550542,0.0002,20]
[365705659,1749839352133,-224.0,0.00020292,2]
[365705660,1749839352154,-15565.2468735,0.00020293,2]
[365705661,1749839352182,-206.670426,0.000206,3]
[365705662,1749839352212,-206.67042589,0.000206,3]
[365705663,1749839352239,-206.67042589,0.000206,3]
[365705664,1749839352264,-206.67042589,0.00020838,4]
[365705665,1749839352286,-250.0,0.00020942,2]
[365705666,1749839352308,-176.94650002,0.00020995,2]
[365705667,1749839352329,-500.0,0.00021064,2]
[365705668,1749839352349,-183.97,0.00021085,3]
[365705669,1749839352371,-551.94,0.00021085,3]
[365705670,1749839352392,-458.02,0.00021085,10]
[365705671,1749839352412,-203.94,0.00021085,2]
[365705672,1749839352436,-254.49744474,0.00021085,2]
[365705673,1749839352462,-186.26101439,0.00021094,2]
[365705674,1749839352484,-229.56461677,0.00021094,2]
[365705675,1749839352505,-460.0,0.00021095,4]
[365705676,1749839352525,-430.0,0.00021095,4]
[365705677,1749839352546,-460.0,0.00021095,4]
[365705678,1749839352567,-440.0,0.00021095,4]
[365705679,1749839352587,-440.0,0.00021095,4]
[365705680,1749839352608,-500.0,0.00021095,4]
[365705681,1749839352629,-460.0,0.00021095,4]
[365705682,1749839352650,-460.0,0.00021095,4]
[365705683,1749839352671,-460.0,0.00021095,4]
[365705684,1749839352693,-460.0,0.00021095,4]
[365705685,1749839352715,-460.0,0.00021095,4]
[365705686,1749839352736,-460.0,0.00021095,4]
[365705687,1749839352757,-460.0,0.00021095,4]
[365705688,1749839352778,-460.0,0.00021095,4]
[365705689,1749839352799,-460.0,0.00021095,4]
[365705690,1749839352820,-460.0,0.00021095,4]
[365705691,1749839352971,-514.03,0.00021095,2]
[365705692,1749839352994,-460.0,0.00021095,4]
[365705693,1749839353014,-440.0,0.00021095,4]
[365705694,1749839353036,-440.0,0.00021095,4]
[365705695,1749839353057,-440.0,0.00021095,4]
[365705696,1749839353080,-414.16959641,0.00021095,4]
[365705697,1749839353102,-460.0,0.00021095,4]
[365705698,1749839353124,-440.0,0.00021095,4]
[365705699,1749839353150,-1179.79,0.00021095,4]
[365705700,1749839353171,-430.0,0.00021095,4]
[365705701,1749839353196,-460.0,0.00021095,4]
[365705702,1749839353219,-460.0,0.00021095,4]
[365705703,1749839353243,-460.0,0.00021095,4]
[365705704,1749839353265,-460.0,0.00021095,4]
[365705705,1749839353286,-460.0,0.00021095,4]
[365705706,1749839353307,-440.0,0.00021095,4]
[365705707,1749839353327,-440.0,0.00021095,4]
[365705708,1749839353348,-460.0,0.00021095,4]
[365705709,1749839353371,-500.0,0.00021095,4]
[365705710,1749839353396,-460.0,0.00021095,4]
[365705711,1749839353419,-460.0,0.00021095,4]
[365705712,1749839353444,-460.0,0.00021095,4]
[365705713,1749839353465,-440.0,0.00021095,4]
[365705714,1749839353487,-460.0,0.00021095,4]
[365705715,1749839353510,-440.0,0.00021095,4]
[365705716,1749839353533,-460.0,0.00021095,4]
[365705717,1749839353554,-460.0,0.00021095,4]
[365705718,1749839353575,-460.0,0.00021095,4]
[365705719,1749839353598,-440.0,0.00021095,4]
[365705720,1749839353619,-460.0,0.00021095,4]
[365705721,1749839353643,-460.0,0.00021095,4]
[365705722,1749839353665,-460.0,0.00021095,4]
[365705723,1749839353687,-460.0,0.00021095,4]
[365705724,1749839353708,-460.0,0.00021095,4]
[365705725,1749839353729,-460.0,0.00021095,4]
[365705726,1749839353753,-285.31610211,0.00021095,4]
[365705727,1749839353862,-700.34389789,0.00021095,4]
[365705728,1749839353884,-460.0,0.00021095,4]
[365705729,1749839353904,-440.0,0.00021095,4]
[365705730,1749839353924,-460.0,0.00021095,4]
[365705731,1749839353946,-460.0,0.00021095,4]
[365705732,1749839353965,-440.0,0.00021095,4]
[365705733,1749839353986,-460.0,0.00021095,4]
[365705734,1749839354007,-552.55,0.00021095,4]
[365705735,1749839354027,-460.0,0.00021095,4]
[365705736,1749839354047,-460.0,0.00021095,4]
[365705737,1749839354068,-460.0,0.00021095,4]
[365705738,1749839354088,-460.0,0.00021095,4]
[365705739,1749839354109,-460.0,0.00021095,4]
[365705740,1749839354129,-460.0,0.00021095,4]
[365705741,1749839354148,-400.0,0.00021095,4]
[365705742,1749839354170,-460.0,0.00021095,4]
[365705743,1749839354192,-460.0,0.00021095,4]
[365705744,1749839354216,-420.0,0.00021095,4]
[365705745,1749839354237,-460.0,0.00021095,4]
[365705746,1749839354258,-440.0,0.00021095,4]
[365705747,1749839354280,-460.0,0.00021095,4]
[365705748,1749839354301,-460.0,0.00021095,4]
[365705749,1749839354326,-440.0,0.00021095,4]
[365705750,1749839354347,-460.0,0.00021095,4]
[365705751,1749839354369,-460.0,0.00021095,4]
[365705752,1749839354390,-460.0,0.00021095,4]
[365705753,1749839354410,-460.0,0.00021095,4]
[365705754,1749839354431,-460.0,0.00021095,4]
[365705755,1749839354454,-460.0,0.00021095,4]
[365705756,1749839354475,-410.0,0.00021095,4]
[365705757,1749839354498,-460.0,0.00021095,4]
[365705758,1749839354522,-460.0,0.00021095,4]
[365705759,1749839354555,-460.0,0.00021095,4]
[365705760,1749839354578,-460.0,0.00021095,4]
[365705761,1749839354599,-460.0,0.00021095,4]
[365705762,1749839354619,-430.0,0.00021095,4]
[365705763,1749839354640,-440.0,0.00021095,4]
[365705764,1749839354662,-460.0,0.00021095,4]
[365705765,1749839354685,-460.0,0.00021095,4]
[365705766,1749839354707,-460.0,0.00021095,4]
[365705767,1749839354729,-460.0,0.00021095,4]
[365705768,1749839354758,-206.67042589,0.0002115,4]
[365705769,1749839354779,-218.859,0.00021366,2]
[365705770,1749839354798,-200.0,0.00021366,10]
[365705771,1749839354819,-200.0,0.00021366,10]
[365705772,1749839354839,-200.0,0.00021366,10]
[365705773,1749839354860,-7779.22442573,0.00021367,2]
[365705774,1749839354882,-5471.01759046,0.00021367,2]
[365705775,1749839354903,-460.0,0.00021368,4]
[365705776,1749839354926,-460.0,0.00021368,4]
[365705777,1749839354947,-460.0,0.00021368,4]
[365705778,1749839354968,-365.35967499,0.00021368,4]
[365705779,1749839354988,-460.0,0.00021368,4]
[365705780,1749839355008,-403.07380378,0.00021368,4]
[365705781,1749839355028,-460.0,0.00021368,4]
[365705782,1749839355049,-413.71294305,0.00021368,4]
[365705783,1749839355070,-460.0,0.00021368,4]
[365705784,1749839355090,-545.37249477,0.00021368,4]
[365705785,1749839355110,-400.0,0.00021368,4]
[365705786,1749839355130,-460.0,0.00021368,4]
[365705787,1749839355150,-460.0,0.00021368,4]
[365705788,1749839355170,-460.0,0.00021368,4]
[365705789,1749839355192,-460.0,0.00021368,4]
[365705790,1749839355217,-343.04487295,0.00021368,4]
[365705791,1749839355237,-430.0,0.00021368,4]
[365705792,1749839355259,-460.0,0.00021368,4]
[365705793,1749839355282,-390.0,0.00021368,4]
[365705794,1749839355302,-440.0,0.00021368,4]
[365705795,1749839355322,-390.0,0.00021368,4]
[365705796,1749839355342,-412.61563498,0.00021368,4]
[365705797,1749839355362,-457.58856187,0.00021368,4]
[365705798,1749839355382,-371.8883247,0.00021368,4]
[365705799,1749839355402,-258.67756582,0.00021368,4]
[365705800,1749839355422,-431.09191532,0.00021368,4]
[365705801,1749839355443,-460.0,0.00021368,4]
[365705802,1749839355462,-460.0,0.00021368,4]
[365705803,1749839355481,-430.0,0.00021368,4]
[365705804,1749839355501,-403.35417478,0.00021368,4]
[365705805,1749839355521,-373.2507632,0.00021368,4]
[365705806,1749839355540,-430.0,0.00021368,4]
[365705807,1749839355560,-440.0,0.00021368,4]
[365705808,1749839355581,-460.0,0.00021368,4]
[365705809,1749839355600,-487.7155333,0.00021368,4]
[365705810,1749839355621,-460.0,0.00021368,4]
[365705811,1749839355743,-420.0,0.00021368,4]
[365705812,1749839355763,-547.86262822,0.00021368,4]
[365705813,1749839355783,-436.61590364,0.00021368,4]
[365705814,1749839355803,-460.0,0.00021368,4]
[365705815,1749839355822,-440.0,0.00021368,4]
[365705816,1749839355842,-460.0,0.00021368,4]
[365705817,1749839355860,-440.0,0.00021368,4]
[365705818,1749839355880,-440.0,0.00021368,4]
[365705819,1749839355900,-460.0,0.00021368,4]
[365705820,1749839355922,-484.48,0.00021368,4]
[365705821,1749839355943,-460.0,0.00021368,4]
[365705822,1749839355962,-440.0,0.00021368,4]
[365705823,1749839355982,-460.0,0.00021368,4]
[365705824,1749839356003,-500.0,0.00021368,4]
[365705825,1749839356025,-460.0,0.00021368,4]
[365705826,1749839356044,-440.0,0.00021368,4]
[365705827,1749839356063,-440.0,0.00021368,4]
[365705828,1749839356083,-540.66971869,0.00021368,4]
[365705829,1749839356103,-460.0,0.00021368,4]
[365705830,1749839356124,-527.64,0.00021368,4]
[365705831,1749839356143,-460.0,0.00021368,4]
[365705832,1749839356162,-440.0,0.00021368,4]
[365705833,1749839356182,-460.0,0.00021368,4]
[365705834,1749839356204,-390.0,0.00021368,4]
[365705835,1749839356222,-189.65189557,0.00021368,4]
[365705836,1749839356242,-460.0,0.00021368,4]
[365705837,1749839356261,-269.47313754,0.00021368,4]
[365705838,1749839356284,-460.0,0.00021368,4]
[365705839,1749839356306,-460.0,0.00021368,4]
[365705840,1749839356326,-460.0,0.00021368,4]
[365705841,1749839356345,-460.0,0.00021368,4]
[365705842,1749839356366,-460.0,0.00021368,4]
[365705843,1749839356387,-460.0,0.00021368,4]
[365705844,1749839356407,-460.0,0.00021368,4]
[365705845,1749839356429,-460.0,0.00021368,4]
[365705846,1749839356451,-460.0,0.00021368,4]
[365705847,1749839356472,-1179.79,0.00021369,4]
[365705848,1749839356494,-460.0,0.00021369,4]
[365705849,1749839356516,-460.0,0.00021369,4]
[365705850,1749839356538,-460.0,0.00021369,4]
[365705851,1749839356563,-460.0,0.00021369,4]
[365705852,1749839356586,-460.0,0.00021369,4]
[365705853,1749839356609,-985.66,0.00021369,4]
[365705854,1749839356632,-460.0,0.00021369,4]
[365705855,1749839356655,-460.0,0.00021369,4]
[365705856,1749839356676,-460.0,0.00021369,4]
[365705857,1749839356700,-460.0,0.00021369,4]
[365705858,1749839356723,-460.0,0.00021369,4]
[365705859,1749839356744,-479.45,0.00021369,4]
[365705860,1749839356767,-460.0,0.00021369,4]
[365705861,1749839356790,-460.0,0.00021369,4]
[365705862,1749839356810,-9680.29,0.000214,2]
[365705863,1749839356837,-206.67042589,0.00021463,5]
[365705864,1749839356857,-824.7612103,0.00021607,2]
[365705865,1749839356877,-176.94650001,0.00021629,2]
[365705866,1749839356897,-460.0,0.00021642,4]
[365705867,1749839356917,-460.0,0.00021642,4]
[365705868,1749839356936,-460.0,0.00021642,4]
[365705869,1749839356958,-460.0,0.00021642,4]
[365705870,1749839356978,-460.0,0.00021642,4]
[365705871,1749839356998,-460.0,0.00021642,4]
[365705872,1749839357017,-370.0,0.00021642,4]
[365705873,1749839357038,-460.0,0.00021642,4]
[365705874,1749839357058,-424.66,0.00021642,4]
[365705875,1749839357080,-460.0,0.00021642,4]
[365705876,1749839357101,-276.81,0.00021642,4]
[365705877,1749839357123,-460.0,0.00021642,4]
[365705878,1749839357146,-266.11,0.00021642,4]
[365705879,1749839357168,-460.0,0.00021642,4]
[365705880,1749839357191,-1179.79,0.00021643,4]
[365705881,1749839357216,-460.0,0.00021643,4]
[365705882,1749839357238,-460.0,0.00021643,4]
[365705883,1749839357261,-460.0,0.00021643,4]
[365705884,1749839357284,-460.0,0.00021643,4]
[365705885,1749839357308,-460.0,0.00021643,4]
[365705886,1749839357331,-985.66,0.00021643,4]
[365705887,1749839357354,-460.0,0.00021643,4]
[365705888,1749839357377,-460.0,0.00021643,4]
[365705889,1749839357399,-444.73057202,0.00021643,4]
[365705890,1749839357420,-460.0,0.00021643,4]
[365705891,1749839357443,-460.0,0.00021643,4]